fUSD/lending_fUSD_20240518
["ID","MTS","AMOUNT","RATE_DAILY","PERIOD"]
[327337539,1715994643623,-1148.27895417,0.0002,2]
[327337540,1715994643641,-113.92144888,0.0002,2]
[327337541,1715994643652,-155.0,0.0002,2]
[327337542,1715994643662,-155.0,0.0002,2]
[327337543,1715994643671,-1772.34471026,0.0002,2]
[327337544,1715994643681,-6236.03219204,0.0002,2]
[327337545,1715994643692,-155.0,0.0002,2]
[327337546,1715994643702,-861.78303928,0.0002,2]
[327337547,1715994643712,-5182.92319265,0.0002,2]
[327337548,1715994643722,-627.55958488,0.0002,2]
[327337549,1715994643732,-1165.57715412,0.0002,4]
[327337550,1715994643743,-150.0,0.0002,2]
[327337551,1715994643754,-160.0,0.0002,2]
[327337552,1715994643764,-760.35239406,0.0002,4]
[327337553,1715994643774,-2000.0,0.0002,2]
[327337554,1715994643784,-772.031325,0.0002,2]
[327337555,1715994643794,-439.30731641,0.00020003,2]
[327337556,1715994643805,-2000.0,0.0002001,2]
[327337557,1715994643815,-3210.708748,0.0002002,2]
[327337558,1715994643826,-150.0,0.0002006,3]
[327337559,1715994643836,-439.30731641,0.0002008,2]
[327337560,1715994643847,-439.30731641,0.00020118,2]
[327337561,1715994643858,-151.159,0.00020125,2]
[327337562,1715994643868,-299.747,0.00020125,2]
[327337563,1715994643880,-150.0,0.00020125,2]
[327337564,1715994643894,-165.078,0.00020125,2]
[327337565,1715994643904,-155.092,0.00020125,2]
[327337566,1715994643915,-150.0,0.00020125,2]
[327337567,1715994643926,-970.257,0.00020125,2]
[327337568,1715994643937,-2081.451,0.00020125,2]
[327337569,1715994643948,-1393.818,0.00020125,2]
[327337570,1715994643959,-1642.0,0.00020125,2]
[327337571,1715994643973,-316.038,0.00020125,2]
[327337572,1715994643984,-1225.0,0.00020125,2]
[327337573,1715994643995,-444.0,0.00020125,2]
[327337574,1715994644006,-363.654,0.00020125,2]
[327337575,1715994644016,-439.0,0.00020125,2]
[327337576,1715994644027,-441.03,0.00020125,2]
[327337577,1715994644037,-1647.0,0.00020125,2]
[327337578,1715994644048,-150.0,0.00020125,2]
[327337579,1715994644059,-150.0,0.00020125,2]
[327337580,1715994644069,-2393.0,0.00020125,2]
[327337581,1715994644079,-1137.0,0.00020125,2]
[327337582,1715994644090,-215.0,0.00020125,2]
[327337583,1715994644100,-3106.267,0.00020125,2]
[327337584,1715994644110,-177.88100904,0.00020236,2]
[327337585,1715994644130,-439.30731641,0.00020284,2]
[327337586,1715994644144,-158.96537893,0.00020356,2]
[327337587,1715994644156,-255.21518366,0.0002036,2]
[327337588,1715994644168,-45.26471705,0.0002037,2]
[327337589,1715994644188,-2954.73528295,0.0002037,2]
[327337590,1715994644199,-152.71653481,0.00020431,2]
[327337591,1715994644210,-189.52026818,0.00020431,2]
[327337592,1715994644222,-154.51679898,0.00020435,2]
[327337593,1715994644233,-622.49,0.00020447,2]
[327337594,1715994644245,-364.29,0.00020447,2]
[327337595,1715994644256,-152.71653481,0.00020466,2]
[327337596,1715994644268,-150.0,0.000205,2]
[327337597,1715994644279,-150.25232363,0.00020556,2]
[327337598,1715994644290,-150.25232363,0.00020587,2]
[327337599,1715994644301,-167.84518346,0.00020673,2]
[327337600,1715994644312,-152.71653481,0.00020677,2]
[327337601,1715994644323,-156.49084933,0.00020724,2]
[327337602,1715994644334,-152.71653481,0.00020734,2]
[327337603,1715994644345,-189.52026818,0.0002077,2]
[327337604,1715994644356,-150.63567191,0.00020796,2]
[327337605,1715994644367,-439.30731641,0.00020803,2]
[327337606,1715994644378,-168.02744571,0.00020811,2]
[327337607,1715994644389,-154.51679898,0.00020862,2]
[327337608,1715994644400,-150.25232363,0.0002088,2]
[327337609,1715994644412,-439.30731641,0.00020892,2]
[327337610,1715994644424,-99.02063725,0.00021,2]
[327337611,1715994644438,-618.4691769,0.00021,2]
[327337612,1715994644449,-336.04822462,0.00021,2]
[327337613,1715994644627,-1663.95177538,0.00021,2]
[327337614,1715994644637,-150.0,0.00021,2]
[327337615,1715994644646,-1451.72818493,0.0002101,2]
[327337616,1715994644722,-1722.91621583,0.00017435,2]
[327337617,1715994644731,-548.27181507,0.0002101,2]
[327337618,1715994644742,-2000.0,0.0002102,2]
[327337619,1715994644752,-2000.0,0.0002103,2]
[327337620,1715994644762,-2000.0,0.0002104,2]
[327337621,1715994644772,-2000.0,0.0002105,2]
[327337622,1715994644782,-2000.0,0.0002106,2]
[327337623,1715994644791,-500.0,0.00021064,2]
[327337624,1715994644800,-2000.0,0.0002107,2]
[327337625,1715994644811,-500.0,0.00021073,2]
[327337626,1715994644821,-2000.0,0.0002108,2]
[327337627,1715994644833,-2000.0,0.0002109,2]
[327337628,1715994644842,-2000.0,0.000211,2]
[327337629,1715994644852,-4999.60537835,0.0002111,2]
[327337630,1715994644864,-3830.162758,0.0002111,2]
[327337631,1715994644873,-1013.78,0.00021125,2]
[327337632,1715994644883,-500.0,0.0002113,2]
[327337633,1715994644898,-152.71653481,0.00021163,2]
[327337634,1715994644907,-439.30731641,0.00021231,2]
[327337635,1715994644916,-189.52026818,0.00021248,2]
[327337636,1715994644927,-150.63567191,0.00021267,2]
[327337637,1715994644937,-439.30731641,0.0002131,2]
[327337638,1715994644948,-154.51679898,0.00021327,2]
[327337639,1715994644959,-439.30731641,0.00021334,2]
[327337640,1715994644970,-255.21518366,0.00021409,2]
[327337641,1715994644980,-439.30731641,0.00021428,2]
[327337642,1715994644990,-154.74831958,0.00021438,2]
[327337643,1715994645000,-150.0,0.000215,3]
[327337644,1715994645010,-155.95810749,0.00021611,2]
[327337645,1715994645020,-154.51679898,0.00021616,2]
[327337646,1715994645029,-152.71653481,0.00021637,2]
[327337647,1715994645038,-189.52026818,0.0002167,2]
[327337648,1715994645048,-255.21518366,0.00021733,2]
[327337649,1715994645058,-150.63567191,0.00021785,2]
[327337650,1715994645067,-255.21518366,0.00021808,2]
[327337651,1715994645076,-189.52026818,0.00021864,2]
[327337652,1715994645086,-6767.06169683,0.000219,2]
[327337653,1715994645095,-2000.0,0.00021918,2]
[327337654,1715994645104,-1270.1,0.00021918,2]
[327337655,1715994645114,-500.0,0.00021918,2]
[327337656,1715994645123,-500.0,0.00021918,2]
[327337657,1715994645133,-500.0,0.00021918,2]
[327337658,1715994645143,-500.0,0.00021918,2]
[327337659,1715994645153,-500.0,0.00021918,2]
[327337660,1715994645163,-500.0,0.00021918,2]
[327337661,1715994645173,-150.0,0.00021918,2]
[327337662,1715994645182,-150.0,0.00021918,2]
[327337663,1715994645192,-150.0,0.00021918,2]
[327337664,1715994645201,-150.0,0.00021918,2]
[327337665,1715994645211,-154.7595402,0.00021923,2]
[327337666,1715994645221,-154.51679898,0.00021955,2]
[327337667,1715994645231,-255.21518366,0.0002197,2]
[327337668,1715994645240,-5519.52403688,0.00022,2]
[327337669,1715994645251,-5000.0,0.00022,2]
[327337670,1715994645260,-150.0,0.00022,3]
[327337671,1715994645270,-154.7595402,0.0002209,2]
[327337672,1715994645279,-255.21518366,0.00022161,2]
[327337673,1715994645290,-189.52026818,0.00022166,2]
[327337674,1715994645300,-168.24161346,0.00022183,2]
[327337675,1715994645310,-150.25232363,0.00022184,2]
[327337676,1715994645319,-755.0,0.00022214,2]
[327337677,1715994645330,-642.0,0.00022214,2]
[327337678,1715994645339,-439.30731641,0.00022231,2]
[327337679,1715994645349,-255.21518366,0.00022268,2]
[327337680,1715994645358,-155.0,0.00022325,2]
[327337681,1715994645368,-170.2,0.00022336,15]
[327337682,1715994645377,-255.21518366,0.00022371,2]
[327337683,1715994645387,-150.25232363,0.00022387,2]
[327337684,1715994645397,-289.0,0.00022387,2]
[327337685,1715994645406,-3761.75017761,0.00022387,2]
[327337686,1715994645419,-1414.34559955,0.00022387,2]
[327337687,1715994645434,-32681.90422284,0.00022387,2]
[327337688,1715994645444,-5914.0,0.00022387,2]
[327337689,1715994645453,-289.611,0.00022387,2]
[327337690,1715994645463,-439.30731641,0.0002243,2]
[327337691,1715994645472,-755.0,0.00022443,2]
[327337692,1715994645482,-642.0,0.00022443,2]
[327337693,1715994645492,-152.71653481,0.00022447,2]
[327337694,1715994645501,-1811.627728,0.0002245,2]
[327337695,1715994645511,-150.0,0.000225,3]
[327337696,1715994645520,-158.96537893,0.00022533,2]
[327337697,1715994645530,-152.71653481,0.00022631,2]
[327337698,1715994645540,-439.30731641,0.00022651,2]
[327337699,1715994645549,-150.63567191,0.00022661,2]
[327337700,1715994645559,-755.0,0.00022672,2]
[327337701,1715994645569,-642.0,0.00022672,2]
[327337702,1715994645578,-3000.0,0.0002287,2]
[327337703,1715994645588,-152.71653481,0.00022882,2]
[327337704,1715994645598,-439.30731659,0.00022897,2]
[327337705,1715994645607,-755.0,0.00022901,2]
[327337706,1715994645617,-658.06966963,0.00022901,2]
[327337707,1715994645626,-1065.92466053,0.00022901,2]
[327337708,1715994645636,-642.0,0.00022901,2]
[327337709,1715994645645,-1363.18904412,0.00022901,2]
[327337710,1715994645654,-199.861858,0.00022917,2]
[327337711,1715994645664,-165.572564,0.00022917,2]
[327337712,1715994645673,-250.653897,0.00022917,2]
[327337713,1715994645683,-150.825061,0.00022917,2]
[327337714,1715994645694,-156.861522,0.00022917,2]
[327337715,1715994645703,-150.25232363,0.00022993,2]
[327337716,1715994645712,-155.0,0.00023,2]
[327337717,1715994645721,-150.0,0.00023,3]
[327337718,1715994645731,-189.52026818,0.00023005,2]
[327337719,1715994645741,-2603.99957143,0.0002303,2]
[327337720,1715994645752,-155.95810749,0.00023058,2]
[327337721,1715994645762,-189.52026818,0.00023083,2]
[327337722,1715994645771,-189.52026818,0.00023118,2]
[327337723,1715994645781,-150.0,0.00023124,10]
[327337724,1715994645791,-150.0,0.00023124,10]
[327337725,1715994645800,-150.0,0.00023124,10]
[327337726,1715994645809,-150.0,0.00023125,2]
[327337727,1715994645819,-281.774,0.00023125,2]
[327337728,1715994645829,-308.521,0.00023125,2]
[327337729,1715994645838,-444.0,0.00023125,2]
[327337730,1715994645848,-439.0,0.00023125,2]
[327337731,1715994645857,-1647.0,0.00023125,2]
[327337732,1715994645866,-2351.0,0.00023125,2]
[327337733,1715994645875,-924.667,0.00023125,2]
[327337734,1715994645886,-755.0,0.0002313,2]
[327337735,1715994645899,-642.0,0.0002313,2]
[327337736,1715994645908,-150.63567191,0.00023143,2]
[327337737,1715994645918,-154.74831958,0.000232,2]
[327337738,1715994645932,-155.95810749,0.00023203,2]
[327337739,1715994645942,-250.653897,0.00023203,2]
[327337740,1715994645951,-150.0,0.00023209,7]
[327337741,1715994645960,-5000.0,0.00023225,2]
[327337742,1715994645971,-152.71653482,0.00023246,2]
[327337743,1715994645981,-500.0,0.00023265,2]
[327337744,1715994645990,-423.7,0.00023265,2]
[327337745,1715994646000,-155.95810749,0.00023298,2]
[327337746,1715994646010,-255.21518366,0.00023334,2]
[327337747,1715994646020,-755.0,0.00023359,2]
[327337748,1715994646029,-642.0,0.00023359,2]
[327337749,1715994646039,-2003.48481845,0.000234,2]
[327337750,1715994646055,-155.95810749,0.00023472,2]
[327337751,1715994646069,-250.653897,0.0002349,2]
[327337752,1715994646078,-150.0,0.00023499,10]
[327337753,1715994646089,-150.0,0.00023499,10]
[327337754,1715994646099,-150.0,0.00023499,10]
[327337755,1715994646109,-293.87796349,0.000235,2]
[327337756,1715994646120,-2392.27246774,0.000235,2]
[327337757,1715994646130,-444.94127906,0.000235,2]
[327337758,1715994646140,-872.30466489,0.000235,4]
[327337759,1715994646149,-500.0,0.000235,2]
[327337760,1715994646159,-86271.56800062,0.000235,2]
[327337761,1715994646168,-2402.49789051,0.000235,2]
[327337762,1715994646178,-20209.30609202,0.000235,2]
[327337763,1715994646188,-362.42260068,0.000235,2]
[327337764,1715994646198,-200.0,0.000235,2]
[327337765,1715994646207,-2000.0,0.000235,2]
[327337766,1715994646217,-200.0,0.000235,2]
[327337767,1715994646228,-150.0,0.000235,3]
[327337768,1715994646238,-179.89314112,0.00023515,2]
[327337769,1715994646248,-166.83499667,0.00023542,2]
[327337771,1715994646258,-755.0,0.00023588,2]
[327337773,1715994646268,-642.0,0.00023588,2]
[327337774,1715994646278,-189.52026818,0.00023594,2]
[327337775,1715994646288,-150.25232363,0.00023598,2]
[327337776,1715994646297,-255.21518366,0.0002362,2]
[327337777,1715994646307,-150.25232363,0.00023628,2]
[327337778,1715994646316,-189.52026818,0.00023628,2]
[327337779,1715994646326,-157.66903106,0.00023662,2]
[327337780,1715994646336,-154.74831958,0.00023677,2]
[327337781,1715994646346,-189.52026818,0.0002371,2]
[327337782,1715994646356,-154.75954026,0.00023731,2]
[327337783,1715994646366,-2000.0,0.00023735,2]
[327337784,1715994646376,-150.25232363,0.00023744,2]
[327337785,1715994646386,-255.21518366,0.00023748,2]
[327337786,1715994646396,-250.653897,0.00023776,2]
[327337787,1715994646406,-150.0,0.00023899,2]
[327337788,1715994646415,-830.62036784,0.00024,2]
[327337789,1715994646425,-352.225527,0.00024,10]
[327337790,1715994646434,-150.0,0.00024,4]
[327337791,1715994646444,-199.861858,0.00024063,2]
[327337792,1715994646454,-165.572564,0.00024063,2]
[327337793,1715994646463,-250.653897,0.00024063,2]
[327337794,1715994646473,-150.0,0.000245,4]
[327337795,1715994646483,-869.2,0.00024935,2]
[327337796,1715994646493,-869.2,0.00024935,2]
[327337797,1715994646503,-415.3,0.00024935,2]
[327337798,1715994646512,-415.3,0.00024935,2]
[327337799,1715994646521,-869.2,0.00024935,2]
[327337800,1715994646531,-415.3,0.00024935,2]
[327337801,1715994646540,-415.3,0.00024935,2]
[327337802,1715994646549,-869.2,0.00024935,2]
[327337803,1715994646559,-415.3,0.00024935,2]
[327337804,1715994646568,-869.2,0.00024935,2]
[327337805,1715994646577,-622.56,0.00024935,2]
[327337806,1715994646587,-327.22,0.00024935,2]
[327337807,1715994646596,-17559.92510072,0.0002499,2]
[327337808,1715994646605,-321.96139267,0.00025,30]
[327337809,1715994646614,-260.05421603,0.00025,2]
[327337810,1715994646623,-1618.36473459,0.00025,10]
[327337811,1715994646633,-248.23073121,0.00025,2]
[327337812,1715994646643,-1777.58316315,0.00025,2]
[327337813,1715994646651,-575.04451306,0.00025,14]
[327337814,1715994646661,-430.17492864,0.00025,2]
[327337815,1715994646671,-8422.50320969,0.00025,2]
[327337816,1715994646681,-160.0,0.00025,2]
[327337817,1715994646691,-150.0,0.00025,4]
[327337818,1715994646700,-170.2,0.00025325,15]
[327337819,1715994646709,-420.52,0.00025365,2]
[327337821,1715994646719,-3000.0,0.0002537,2]
[327337823,1715994646728,-201.546,0.00025387,2]
[327337825,1715994646738,-213.037,0.00025387,2]
[327337827,1715994646747,-3455.882,0.00025387,2]
[327337829,1715994646756,-150.0,0.000255,4]
[327337831,1715994646765,-500.0,0.00025887,6]
[327337833,1715994646775,-500.0,0.00025887,6]
[327337834,1715994646783,-541.0,0.00025887,6]
[327337835,1715994646792,-150.0,0.00026,4]
[327337836,1715994646801,-523.76,0.00026305,2]
[327337837,1715994646810,-163.38,0.00026305,2]
[327337838,1715994646819,-163.38,0.00026305,2]
[327337839,1715994646828,-163.29,0.00026305,2]
[327337840,1715994646838,-5000.0,0.00026355,3]
[327337841,1715994646847,-150.0,0.00026358,7]
[327337842,1715994646856,-150.0,0.000265,5]
[327337843,1715994646865,-108114.529044,0.0002669,2]
[327337844,1715994646874,-622.49,0.00026921,2]
[327337845,1715994646884,-364.29,0.00026921,2]
[327337847,1715994646897,-155.0,0.00027,4]
[327337849,1715994646907,-3344.70218034,0.00027,2]
[327337851,1715994646916,-2000.0,0.00027,2]
[327337853,1715994646926,-150.0,0.00027,5]
[327337855,1715994646938,-2000.0,0.0002701,2]
[327337857,1715994646948,-2000.0,0.0002702,2]
[327337859,1715994646957,-2000.0,0.0002703,2]
[327337861,1715994646968,-2000.0,0.0002704,2]
[327337863,1715994646981,-3331.696907,0.0002705,2]
[327337865,1715994646991,-5000.0,0.00027325,3]
[327337867,1715994647001,-600.0,0.00027397,2]
[327337870,1715994647011,-600.0,0.00027397,4]
[327337872,1715994647020,-600.0,0.00027397,6]
[327337874,1715994647030,-600.0,0.00027397,8]
[327337876,1715994647039,-600.0,0.00027397,10]
[327337878,1715994647049,-500.38,0.00027397,12]
[327337880,1715994647058,-229.94450648,0.00027397,30]
[327337882,1715994647068,-194.90582005,0.00027397,30]
[327337884,1715994647077,-150.0,0.00027397,2]
[327337886,1715994647088,-839.0,0.000274,2]
[327337888,1715994647098,-156.86006147,0.000274,2]
[327337890,1715994647107,-1000.0,0.000274,2]
[327337892,1715994647117,-2477.94058615,0.000275,30]
[327337894,1715994647127,-150.0,0.000275,5]
[327337896,1715994647137,-229.94450648,0.00027507,30]
[327337898,1715994647147,-194.90582005,0.00027507,30]
[327337900,1715994647157,-11613.37114612,0.00027584,2]
[327337902,1715994647166,-229.94450648,0.00027616,30]
[327337904,1715994647176,-194.90582005,0.00027616,30]
[327337906,1715994647186,-152.35,0.00027641,2]
[327337908,1715994647198,-229.94450648,0.00027753,30]
[327337910,1715994647208,-194.90582005,0.00027753,30]
[327337913,1715994647218,-158.87,0.00027812,2]
[327337915,1715994647227,-229.94450648,0.00027863,30]
[327337917,1715994647237,-194.90582005,0.00027863,30]
[327337919,1715994647246,-210.78443908,0.00027878,2]
[327337920,1715994647258,-229.94450648,0.00027973,30]
[327337923,1715994647269,-194.90582005,0.00027973,30]
[327337925,1715994647278,-225.19781709,0.00028,2]
[327337927,1715994647287,-150.0,0.00028,5]
[327337929,1715994647296,-229.94450648,0.00028082,30]
[327337931,1715994647306,-194.90582005,0.00028082,30]
[327337933,1715994647316,-150.0,0.00028118,2]
[327337935,1715994647325,-153.87301591,0.00028219,30]
[327337937,1715994647335,-229.94450648,0.00028219,30]
[327337939,1715994647345,-194.90582005,0.00028219,30]
[327337941,1715994647354,-170.2,0.00028314,15]
[327337943,1715994647364,-229.94450648,0.00028329,30]
[327337945,1715994647373,-194.90582005,0.00028329,30]
[327337947,1715994647383,-229.94450648,0.00028438,30]
[327337949,1715994647394,-194.90582005,0.00028438,30]
[327337951,1715994647404,-150.0,0.000285,5]
[327337953,1715994647413,-229.94450648,0.00028548,30]
[327337955,1715994647423,-194.90582005,0.00028548,30]
[327337957,1715994647433,-5000.0,0.00028601,3]
[327337959,1715994647442,-229.94450648,0.00028658,30]
[327337961,1715994647452,-194.90582005,0.00028658,30]
[327337963,1715994647461,-1047.32,0.00028785,2]
[327337965,1715994647471,-163.38,0.00028785,2]
[327337967,1715994647481,-150.0,0.00028785,2]
[327337970,1715994647490,-150.0,0.00028785,2]
[327337971,1715994647499,-150.0,0.00028785,2]
[327337974,1715994647508,-150.0,0.00028785,2]
[327337976,1715994647518,-702.28,0.00028785,2]
[327337978,1715994647527,-150.0,0.00028785,2]
[327337980,1715994647536,-420.52,0.00028785,2]
[327337982,1715994647546,-150.0,0.00028785,2]
[327337984,1715994647555,-150.0,0.00028785,2]
[327337986,1715994647564,-150.0,0.00028785,2]
[327337988,1715994647573,-150.0,0.00028785,2]
[327337990,1715994647584,-163.38,0.00028785,2]
[327337992,1715994647593,-150.0,0.00028785,2]
[327337994,1715994647604,-150.0,0.00028785,2]
[327337996,1715994647614,-150.0,0.00028785,2]
[327337998,1715994647623,-150.0,0.00028785,2]
[327338000,1715994647633,-163.38,0.00028785,2]
[327338002,1715994647642,-150.0,0.00028785,2]
[327338004,1715994647652,-150.0,0.00028785,2]
[327338006,1715994647661,-150.0,0.00028785,2]
[327338008,1715994647670,-163.38,0.00028785,2]
[327338010,1715994647679,-163.38,0.00028785,2]
[327338012,1715994647688,-150.0,0.00028785,2]
[327338014,1715994647698,-150.0,0.00028785,2]
[327338016,1715994647707,-163.38,0.00028785,2]
[327338018,1715994647717,-421.51,0.00028785,2]
[327338020,1715994647726,-163.38,0.00028785,2]
[327338022,1715994647736,-420.52,0.00028788,2]
[327338024,1715994647745,-419.33,0.00028788,2]
[327338026,1715994647756,-163.14,0.00028788,2]
[327338028,1715994647765,-229.94450648,0.00028795,30]
[327338030,1715994647775,-194.90582005,0.00028795,30]
[327338032,1715994647784,-150.0,0.00028839,2]
[327338034,1715994647793,-150.0,0.00028877,10]
[327338036,1715994647802,-150.0,0.00028877,10]
[327338038,1715994647812,-150.0,0.00028877,10]
[327338040,1715994647820,-160.0,0.00028878,30]
[327338042,1715994647829,-2000.0,0.00028878,30]
[327338044,1715994647839,-1022.5,0.00028878,30]
[327338046,1715994647848,-467.95317227,0.00028878,60]
[327338048,1715994647858,-1600.0,0.00028878,30]
[327338050,1715994647868,-132997.18041055,0.00028878,30]
[327338082,1715994648156,-94650.98956469,0.00028878,30]
[327338084,1715994648165,-8266.0,0.00028878,4]
[327338086,1715994648175,-150.0,0.00028878,2]
[327338088,1715994648184,-150.0,0.00028878,2]
[327338090,1715994648194,-150.0,0.00028878,2]
[327338092,1715994648203,-150.0,0.00028878,2]
[327338094,1715994648212,-150.0,0.00028878,2]
[327338096,1715994648222,-150.0,0.00028878,2]
[327338098,1715994648231,-150.0,0.00028878,2]
[327338100,1715994648240,-199.187378,0.00028878,2]
[327338102,1715994648250,-229.94450648,0.00028904,30]
[327338104,1715994648260,-194.90582005,0.00028904,30]
[327338106,1715994648269,-194.34268049,0.00028998,2]
[327338108,1715994648278,-155.45749735,0.00028998,2]
[327338110,1715994648287,-155.76589553,0.00028998,2]
[327338112,1715994648296,-150.0,0.00028999,10]
[327338114,1715994648305,-150.0,0.00028999,10]
[327338116,1715994648314,-150.0,0.00028999,10]
[327338118,1715994648323,-76171.48420502,0.00029,2]
[327338120,1715994648335,-690.0,0.00029,2]
[327338122,1715994648346,-4847.88961838,0.00029,2]
[327338125,1715994648358,-9932.72454456,0.00029,2]
[327338127,1715994648369,-1407.0,0.00029,2]
[327338129,1715994648380,-773.71385015,0.00029,2]
[327338132,1715994648396,-4704.000003,0.00029,2]
[327338134,1715994648407,-1003.28952018,0.00029,2]
[327338136,1715994648418,-300.0,0.00029,2]
[327338138,1715994648429,-840.00000001,0.00029,2]
[327338140,1715994648441,-500.0,0.00029,2]
[327338143,1715994648452,-26861.38234605,0.00029,2]
[327338145,1715994648461,-5000.0,0.00029,2]
[327338147,1715994648470,-1480.97657906,0.00029,2]
[327338149,1715994648480,-150.0,0.00029,6]
[327338151,1715994648489,-229.94450648,0.00029014,30]
[327338153,1715994648498,-194.90582005,0.00029014,30]
[327338155,1715994648507,-150.0,0.000295,6]
[327338157,1715994648518,-150.0,0.00029507,15]
[327338159,1715994648527,-150.0,0.0002956,2]
[327338161,1715994648536,-39211.5693224,0.0003,30]
[327338163,1715994648545,-40806.41819559,0.0003,4]
[327338165,1715994648554,-158.28895774,0.0003,4]
[327338167,1715994648563,-49845.70652321,0.0003,4]
[327338169,1715994648572,-5323.18412813,0.0003,2]
[327338171,1715994648581,-1391.80767982,0.0003,60]
[327338173,1715994648590,-14617.60852168,0.0003,2]
[327338175,1715994648600,-160.0,0.0003,2]
[327338177,1715994648609,-780.34624954,0.0003,4]
[327338179,1715994648618,-150.0,0.0003,6]
[327338180,1715994648628,-150.0,0.00030281,2]
[327338181,1715994648637,-431.9029252,0.00031,32]
[327338182,1715994648648,-150.0,0.00031002,2]
[327338183,1715994648658,-170.2,0.00031303,15]
[327338184,1715994648670,-5000.0,0.00031341,3]
[327338185,1715994648680,-282.08,0.00031647,2]
[327338186,1715994648689,-150.0,0.00031723,2]
[327338187,1715994648698,-856.94087191,0.00032,4]
[327338188,1715994648707,-900.0,0.00032,33]
[327338189,1715994648716,-307.19105057,0.00032,120]
[327338190,1715994648725,-6058.0,0.0003244,6]
[327338191,1715994648735,-150.0,0.00032444,2]
[327338192,1715994648745,-150.0,0.00032655,15]
[327338193,1715994648754,-151.0,0.00032867,2]
[327338195,1715994648763,-582.25,0.00032899,2]
[327338197,1715994648772,-582.25,0.00032899,2]
[327338199,1715994648781,-582.25,0.00032899,2]
[327338201,1715994648791,-582.25,0.00032899,2]
[327338203,1715994648800,-582.25,0.00032899,2]
[327338204,1715994648809,-582.25,0.00032899,2]
[327338205,1715994648818,-582.25,0.00032899,2]
[327338206,1715994648827,-582.25,0.00032899,2]
[327338207,1715994648837,-90204.89444338,0.000329,30]
[327338208,1715994648900,-414.317,0.00020803,2]
[327338209,1715994648910,-1900.443,0.00027397,10]
[327338210,1715994648922,-3237.067,0.00027397,10]
[327338211,1715994648932,-741.23872126,0.000329,30]
[327338212,1715994648947,-271572.74475423,0.000329,30]
[327338213,1715994648956,-12811.34843114,0.000329,30]
[327338272,1715995831707,-293.43812873,0.00010478,2]
[327338274,1715995831719,-951.54963158,0.00010478,2]
[327338275,1715995831728,-525.39501904,0.00010479,2]
[327338277,1715995831925,-256.90979463,0.00010479,2]
[327338278,1715995831939,-711.49070591,0.00010479,2]
[327338279,1715995831953,-500.0,0.00010479,2]
[327338280,1715995831964,-1033.65504796,0.00010479,2]
[327338281,1715995831973,-899.55874254,0.000105,2]
[327338282,1715995831985,-5048.93899315,0.000105,2]
[327338283,1715995831994,-553.15144269,0.00010596,2]
[327338284,1715995832003,-553.15144268,0.00010596,2]
[327338285,1715995832012,-157.50965258,0.00010605,2]
[327338293,1715995832182,-1245.97484874,0.00010605,2]
[327338295,1715995832194,-1220.12781752,0.00010605,2]
[327338297,1715995832204,-2974.51760464,0.00010605,2]
[327338299,1715995832215,-406.13838012,0.00010605,2]
[327338301,1715995832227,-1890.99559719,0.00010605,2]
[327338303,1715995832236,-485.68547373,0.00010605,2]
[327338305,1715995832245,-200.49979235,0.00010605,2]
[327338307,1715995832254,-344.74389302,0.00010605,2]
[327338309,1715995832263,-167.79510235,0.00010606,2]
[327338311,1715995832273,-939.02688406,0.00011598,2]
[327338313,1715995832282,-172.56468519,0.00011598,2]
[327338314,1715995832290,-1068.0901742,0.00011599,2]